[Event "Late-Titled-Tuesday-Blitz-May-07-2024"]
[Site "Chess.com"]
[Date "2024.05.07"]
[Round "11"]
[White "MagnusCarlsen"]
[Black "Hikaru"]
[Result "1-0"]
[WhiteElo "3217"]
[BlackElo "3222"]
[TimeControl "180+1"]
[EndTime "16:08:47 PDT"]
[Termination "MagnusCarlsen won by resignation"]

1. e4 {[%clk 0:03:00.9]} 1... e5 {[%clk 0:03:00.3]} 2. Nf3 {[%clk 0:02:59.1]}
2... Nc6 {[%clk 0:03:00.7]} 3. Bb5 {[%clk 0:02:58.5]} 3... Nf6 {[%clk
0:03:00.9]} 4. d3 {[%clk 0:02:57]} 4... Bc5 {[%clk 0:03:00.9]} 5. c3 {[%clk
0:02:56.4]} 5... d5 {[%clk 0:02:58.4]} 6. Nbd2 {[%clk 0:02:56]} 6... O-O {[%clk
0:02:58.2]} 7. exd5 {[%clk 0:02:52.8]} 7... Qxd5 {[%clk 0:02:56]} 8. Bc4 {[%clk
0:02:53.3]} 8... Qd8 {[%clk 0:02:45]} 9. b4 {[%clk 0:02:53]} 9... Be7 {[%clk
0:02:35.4]} 10. O-O {[%clk 0:02:52.1]} 10... a6 {[%clk 0:02:33.7]} 11. a4 {[%clk
0:02:51]} 11... Nd5 {[%clk 0:02:33.8]} 12. Qc2 {[%clk 0:02:46.9]} 12... Re8
{[%clk 0:02:14.7]} 13. Re1 {[%clk 0:02:45.5]} 13... Bf8 {[%clk 0:02:15.1]} 14.
d4 {[%clk 0:02:40.8]} 14... Nb6 {[%clk 0:02:07.2]} 15. Bb3 {[%clk 0:02:26.4]}
15... Qf6 {[%clk 0:01:16.2]} 16. Ne4 {[%clk 0:02:00.3]} 16... Qg6 {[%clk
0:01:16.2]} 17. a5 {[%clk 0:01:42.4]} 17... Nd7 {[%clk 0:01:13.2]} 18. Nh4
{[%clk 0:01:41.4]} 18... Qh5 {[%clk 0:01:11]} 19. Ng5 {[%clk 0:01:34.3]} 19...
Nd8 {[%clk 0:01:11.4]} 20. Nhf3 {[%clk 0:01:32.8]} 20... h6 {[%clk 0:01:08.9]}
21. Ne4 {[%clk 0:01:21.6]} 21... Qg6 {[%clk 0:00:44.2]} 22. Ng3 {[%clk
0:00:46.1]} 22... Qxc2 {[%clk 0:00:40]} 23. Bxc2 {[%clk 0:00:47]} 23... Nc6
{[%clk 0:00:37.8]} 24. Ba4 {[%clk 0:00:44.1]} 24... Bd6 {[%clk 0:00:34.7]} 25.
Nf5 {[%clk 0:00:38]} 25... Nf6 {[%clk 0:00:20.1]} 26. Nxd6 {[%clk 0:00:34.2]}
26... cxd6 {[%clk 0:00:21]} 27. dxe5 {[%clk 0:00:34]} 27... dxe5 {[%clk
0:00:20.3]} 28. Bxc6 {[%clk 0:00:33.4]} 28... bxc6 {[%clk 0:00:21.2]} 29. Rxe5
{[%clk 0:00:32.9]} 29... Bg4 {[%clk 0:00:21]} 30. Be3 {[%clk 0:00:29]} 30...
Bxf3 {[%clk 0:00:19.4]} 31. Rxe8+ {[%clk 0:00:28.4]} 31... Rxe8 {[%clk
0:00:20.3]} 32. gxf3 {[%clk 0:00:28.3]} 32... Nd5 {[%clk 0:00:21.2]} 33. Bd2
{[%clk 0:00:28.2]} 33... Rd8 {[%clk 0:00:20.7]} 34. Kf1 {[%clk 0:00:26.2]} 34...
Nxb4 {[%clk 0:00:19.3]} 35. cxb4 {[%clk 0:00:22.5]} 35... Rxd2 {[%clk
0:00:19.4]} 36. Rc1 {[%clk 0:00:23.2]} 36... Rd4 {[%clk 0:00:19.8]} 37. Rxc6
{[%clk 0:00:22.2]} 37... Rxb4 {[%clk 0:00:20.4]} 38. Rxa6 {[%clk 0:00:22.8]}
38... Ra4 {[%clk 0:00:21]} 39. Ke2 {[%clk 0:00:20.2]} 39... Ra3 {[%clk
0:00:20.9]} 40. f4 {[%clk 0:00:19.4]} 40... g5 {[%clk 0:00:20.7]} 41. Rxh6
{[%clk 0:00:13]} 41... Rxa5 {[%clk 0:00:19.6]} 42. Rh5 {[%clk 0:00:12.5]} 42...
Ra2+ {[%clk 0:00:19.2]} 43. Kf3 {[%clk 0:00:12.8]} 43... gxf4 {[%clk 0:00:19.8]}
44. Rg5+ {[%clk 0:00:12.6]} 44... Kh7 {[%clk 0:00:20]} 45. Rg4 {[%clk
0:00:12.9]} 45... f5 {[%clk 0:00:19.4]} 46. Rg5 {[%clk 0:00:11.7]} 46... Ra3+
{[%clk 0:00:14.7]} 47. Kxf4 {[%clk 0:00:11.1]} 47... Rh3 {[%clk 0:00:14.8]} 48.
Rg2 {[%clk 0:00:11.4]} 48... Rh5 {[%clk 0:00:13.2]} 49. Ke5 {[%clk 0:00:10.3]}
49... Kh6 {[%clk 0:00:13.3]} 50. f4 {[%clk 0:00:10.3]} 50... Rh3 {[%clk
0:00:13.1]} 51. Kxf5 {[%clk 0:00:10.2]} 51... Ra3 {[%clk 0:00:13.8]} 52. Kg4
{[%clk 0:00:10.3]} 52... Ra1 {[%clk 0:00:09.9]} 53. Rg3 {[%clk 0:00:10]} 53...
Kg6 {[%clk 0:00:09.9]} 54. h4 {[%clk 0:00:04.5]} 54... Kf6 {[%clk 0:00:09.5]}
55. h5 {[%clk 0:00:04.1]} 55... Rh1 {[%clk 0:00:04.3]} 56. Rh3 {[%clk
0:00:03.5]} 56... Rg1+ {[%clk 0:00:04.9]} 57. Kf3 {[%clk 0:00:03.9]} 57... Rf1+
{[%clk 0:00:05.2]} 58. Kg3 {[%clk 0:00:03.5]} 58... Kg7 {[%clk 0:00:05]} 59. Kg4
{[%clk 0:00:01.8]} 59... Rg1+ {[%clk 0:00:04.7]} 60. Kf5 {[%clk 0:00:02.1]}
60... Ra1 {[%clk 0:00:05.6]} 61. h6+ {[%clk 0:00:02.7]} 61... Kh7 {[%clk
0:00:06.3]} 62. Kg5 {[%clk 0:00:03.2]} 62... Rg1+ {[%clk 0:00:06.7]} 63. Kf6
{[%clk 0:00:03.6]} 63... Ra1 {[%clk 0:00:07]} 64. f5 {[%clk 0:00:03.9]} 64...
Ra6+ {[%clk 0:00:07.5]} 65. Kg5 {[%clk 0:00:03.8]} 65... Ra1 {[%clk 0:00:07.4]}
66. Rh4 {[%clk 0:00:04.7]} 66... Rg1+ {[%clk 0:00:05.6]} 67. Rg4 {[%clk
0:00:05.2]} 67... Ra1 {[%clk 0:00:06.4]} 68. Re4 {[%clk 0:00:01.9]} 68... Rg1+
{[%clk 0:00:06.2]} 69. Kf6 {[%clk 0:00:02.5]} 69... Ra1 {[%clk 0:00:06.8]} 70.
Re8 {[%clk 0:00:02.4]} 70... Ra5 {[%clk 0:00:05.4]} 71. Ke6 {[%clk 0:00:02.1]}
71... Ra6+ {[%clk 0:00:03.2]} 72. Kf7 {[%clk 0:00:01.8]} 72... Ra5 {[%clk
0:00:02]} 73. f6 {[%clk 0:00:02.7]} 73... Kxh6 {[%clk 0:00:02.7]} 74. Kf8 {[%clk
0:00:01.9]} 74... Ra7 {[%clk 0:00:02.2]} 75. f7 {[%clk 0:00:02.8]} 75... Kh7
{[%clk 0:00:02.2]} 76. Re7 {[%clk 0:00:01.4]} 76... Ra8+ {[%clk 0:00:02.3]} 77.
Re8 {[%clk 0:00:02.3]} 77... Ra7 {[%clk 0:00:03.2]} 78. Rd8 {[%clk 0:00:02.6]}
78... Ra2 {[%clk 0:00:02]} 79. Ke7 {[%clk 0:00:03.2]} 79... Kg6 {[%clk
0:00:02.7]} 80. f8=Q {[%clk 0:00:02.8]} 80... Re2+ {[%clk 0:00:03.6]} 81. Kd7
{[%clk 0:00:03.2]} 81... Rd2+ {[%clk 0:00:04.5]} 82. Qd6+ {[%clk 0:00:03.4]} 1-0

[Event "Late-Titled-Tuesday-Blitz-May-07-2024"]
[Site "Chess.com"]
[Date "2024.05.07"]
[Round "11"]
[White "ExchangeAB"]
[Black "HajiyevKanan"]
[Result "0-1"]
[WhiteElo "2410"]
[BlackElo "2556"]
[TimeControl "180+1"]
[EndTime "16:08:56 PDT"]
[Termination "HajiyevKanan won by resignation"]

1. d4 {[%clk 0:02:50.5]} 1... c6 {[%clk 0:03:00.9]} 2. e4 {[%clk 0:02:49.5]}
2... d5 {[%clk 0:03:01.8]} 3. exd5 {[%clk 0:02:48]} 3... cxd5 {[%clk 0:03:02.7]}
4. Bd3 {[%clk 0:02:48.6]} 4... Nc6 {[%clk 0:03:03.1]} 5. c3 {[%clk 0:02:48.3]}
5... Qc7 {[%clk 0:03:03.7]} 6. Nf3 {[%clk 0:02:36.8]} 6... Bg4 {[%clk 0:03:03]}
7. O-O {[%clk 0:02:36.7]} 7... e6 {[%clk 0:03:03.5]} 8. Nbd2 {[%clk 0:02:36.3]}
8... Bd6 {[%clk 0:03:03.1]} 9. h3 {[%clk 0:02:34.5]} 9... Bh5 {[%clk 0:03:03.5]}
10. Qc2 {[%clk 0:02:33.8]} 10... Nge7 {[%clk 0:03:03.6]} 11. Re1 {[%clk
0:02:32.2]} 11... Bg6 {[%clk 0:03:02.1]} 12. Bxg6 {[%clk 0:02:29.1]} 12... Nxg6
{[%clk 0:03:02.7]} 13. Nf1 {[%clk 0:02:29]} 13... O-O {[%clk 0:03:01.8]} 14. Qe2
{[%clk 0:02:26.8]} 14... Rab8 {[%clk 0:03:01.2]} 15. a4 {[%clk 0:02:25.4]} 15...
a6 {[%clk 0:03:01.1]} 16. Ne3 {[%clk 0:02:19.6]} 16... b5 {[%clk 0:03:00.1]} 17.
axb5 {[%clk 0:02:19]} 17... axb5 {[%clk 0:03:01]} 18. Ng4 {[%clk 0:02:17.3]}
18... b4 {[%clk 0:02:59.4]} 19. g3 {[%clk 0:02:00.9]} 19... bxc3 {[%clk
0:02:57.9]} 20. bxc3 {[%clk 0:02:00.6]} 20... Rb3 {[%clk 0:02:57.8]} 21. Bd2
{[%clk 0:01:56.7]} 21... Rb2 {[%clk 0:02:56.8]} 22. Kg2 {[%clk 0:01:54]} 22...
Rfb8 {[%clk 0:02:54.8]} 23. h4 {[%clk 0:01:53.4]} 23... h5 {[%clk 0:02:54.2]}
24. Nge5 {[%clk 0:01:42.5]} 24... Bxe5 {[%clk 0:02:50.1]} 25. Nxe5 {[%clk
0:01:40.1]} 25... Ncxe5 {[%clk 0:02:47]} 26. dxe5 {[%clk 0:01:40.1]} 26... Qc4
{[%clk 0:02:41]} 27. Qxc4 {[%clk 0:01:15]} 27... dxc4 {[%clk 0:02:41.9]} 28. Be3
{[%clk 0:01:15.2]} 28... Nxe5 {[%clk 0:02:24.6]} 29. Bf4 {[%clk 0:01:07.9]}
29... Nd3 {[%clk 0:02:14.4]} 30. Bxb8 {[%clk 0:01:07.4]} 30... Nxe1+ {[%clk
0:02:10.3]} 31. Rxe1 {[%clk 0:01:08.3]} 31... Rxb8 {[%clk 0:02:09.7]} 32. Re4
{[%clk 0:01:08.3]} 32... Rc8 {[%clk 0:02:08.8]} 33. Re5 {[%clk 0:01:07.6]} 33...
g6 {[%clk 0:02:09.2]} 34. Kf3 {[%clk 0:01:07]} 34... Kg7 {[%clk 0:02:09.8]} 35.
Ra5 {[%clk 0:01:06.8]} 35... Kf6 {[%clk 0:02:09.7]} 36. Ke4 {[%clk 0:01:06.7]}
36... Rd8 {[%clk 0:02:07.8]} 37. Ra4 {[%clk 0:01:06.1]} 37... Rd2 {[%clk
0:02:07.9]} 38. f3 {[%clk 0:01:03.3]} 38... Rg2 {[%clk 0:02:06.9]} 39. Kf4
{[%clk 0:01:01.4]} 39... e5+ {[%clk 0:02:03.4]} 40. Ke3 {[%clk 0:01:01.7]} 40...
Rxg3 {[%clk 0:02:02.8]} 41. Rxc4 {[%clk 0:01:01.6]} 41... Rh3 {[%clk 0:01:56.1]}
42. Ra4 {[%clk 0:00:59.9]} 42... Kf5 {[%clk 0:01:54.1]} 43. Rb4 {[%clk
0:00:56.2]} 43... f6 {[%clk 0:01:53.1]} 44. Ra4 {[%clk 0:00:56.3]} 44... Rh1
{[%clk 0:01:45.1]} 45. Rb4 {[%clk 0:00:55.8]} 45... Rc1 {[%clk 0:01:44.4]} 46.
Kd2 {[%clk 0:00:56.1]} 46... Rf1 {[%clk 0:01:43.1]} 47. Ke2 {[%clk 0:00:56.4]}
47... Rc1 {[%clk 0:01:42.6]} 48. Kd2 {[%clk 0:00:56.8]} 48... Rh1 {[%clk
0:01:42.7]} 49. Ke3 {[%clk 0:00:56.8]} 49... g5 {[%clk 0:01:39.5]} 50. hxg5
{[%clk 0:00:56.3]} 50... fxg5 {[%clk 0:01:40.4]} 51. Rb8 {[%clk 0:00:53.7]}
51... Re1+ {[%clk 0:01:38.9]} 52. Kf2 {[%clk 0:00:51.4]} 52... Rc1 {[%clk
0:01:38.9]} 53. Rf8+ {[%clk 0:00:51.2]} 53... Kg6 {[%clk 0:01:39.1]} 54. Rg8+
{[%clk 0:00:51.2]} 54... Kf6 {[%clk 0:01:39.7]} 55. Rf8+ {[%clk 0:00:50]} 55...
Kg7 {[%clk 0:01:36.8]} 56. Re8 {[%clk 0:00:48.7]} 56... Rc2+ {[%clk 0:01:30.5]}
57. Kg3 {[%clk 0:00:43.4]} 57... Rxc3 {[%clk 0:01:31.4]} 58. Rxe5 {[%clk
0:00:42.5]} 58... Kf6 {[%clk 0:01:32.1]} 59. Ra5 {[%clk 0:00:38.7]} 59... h4+
{[%clk 0:01:31.7]} 60. Kg2 {[%clk 0:00:34.1]} 60... Kg6 {[%clk 0:01:29.1]} 61.
Ra8 {[%clk 0:00:33]} 61... Rc2+ {[%clk 0:01:25.6]} 62. Kh3 {[%clk 0:00:30.2]}
62... Rf2 {[%clk 0:01:24.3]} 63. Ra3 {[%clk 0:00:16.2]} 63... Kh5 {[%clk
0:01:23.2]} 64. Rb3 {[%clk 0:00:16]} 64... Kg6 {[%clk 0:01:09.9]} 65. Kg4 {[%clk
0:00:16.4]} 65... Rg2+ {[%clk 0:01:09.7]} 66. Kh3 {[%clk 0:00:16.6]} 66... Rg3+
{[%clk 0:01:10.3]} 67. Kh2 {[%clk 0:00:17.1]} 67... Kf5 {[%clk 0:01:10.9]} 68.
Ra3 {[%clk 0:00:14.2]} 68... Kf4 {[%clk 0:01:11.2]} 69. Ra4+ {[%clk 0:00:13.1]}
69... Kxf3 {[%clk 0:01:11.6]} 70. Ra3+ {[%clk 0:00:13.7]} 70... Kg4 {[%clk
0:01:11.7]} 71. Ra4+ {[%clk 0:00:14.2]} 71... Kh5 {[%clk 0:01:11.8]} 72. Ra8
{[%clk 0:00:14.8]} 72... Re3 {[%clk 0:01:11.7]} 73. Rh8+ {[%clk 0:00:13.6]}
73... Kg4 {[%clk 0:01:12.2]} 74. Ra8 {[%clk 0:00:14.5]} 74... Re2+ {[%clk
0:01:12.3]} 75. Kg1 {[%clk 0:00:15.2]} 75... Re3 {[%clk 0:01:05.1]} 76. Ra2
{[%clk 0:00:14.4]} 76... Kg3 {[%clk 0:01:03.9]} 77. Rg2+ {[%clk 0:00:13.2]}
77... Kf4 {[%clk 0:01:04.1]} 78. Rf2+ {[%clk 0:00:13.6]} 78... Rf3 {[%clk
0:01:04.4]} 79. Ra2 {[%clk 0:00:13.6]} 79... g4 {[%clk 0:01:03.7]} 80. Kg2
{[%clk 0:00:13.6]} 80... Rg3+ {[%clk 0:01:03.1]} 81. Kh2 {[%clk 0:00:13.7]}
81... Re3 {[%clk 0:01:02.3]} 82. Kg2 {[%clk 0:00:13.7]} 82... h3+ {[%clk
0:00:53.8]} 83. Kh2 {[%clk 0:00:13.6]} 83... Kg5 {[%clk 0:00:53.5]} 84. Ra8
{[%clk 0:00:08.9]} 84... Re2+ {[%clk 0:00:52.8]} 85. Kh1 {[%clk 0:00:07.3]}
85... Kh4 {[%clk 0:00:47.9]} 86. Ra3 {[%clk 0:00:07.1]} 86... g3 {[%clk
0:00:46.2]} 87. Ra4+ {[%clk 0:00:06.8]} 87... Kg5 {[%clk 0:00:45.8]} 88. Ra5+
{[%clk 0:00:07]} 88... Kf4 {[%clk 0:00:45.7]} 89. Ra4+ {[%clk 0:00:07.5]} 89...
Kf5 {[%clk 0:00:45.7]} 90. Ra5+ {[%clk 0:00:07.9]} 90... Re5 {[%clk 0:00:43.4]}
91. Ra1 {[%clk 0:00:07.3]} 91... Kf4 {[%clk 0:00:41.4]} 92. Rf1+ {[%clk
0:00:06.9]} 92... Kg4 {[%clk 0:00:41.5]} 93. Ra1 {[%clk 0:00:05.1]} 93... Re4
{[%clk 0:00:38]} 94. Rb1 {[%clk 0:00:04.9]} 94... h2 {[%clk 0:00:31.8]} 95. Kg2
{[%clk 0:00:02.2]} 95... Re2+ {[%clk 0:00:31.6]} 96. Kh1 {[%clk 0:00:02.7]}
96... Kh3 {[%clk 0:00:31.1]} 97. Rg1 {[%clk 0:00:03]} 97... hxg1=Q+ {[%clk
0:00:27]} 0-1

[Event "Late-Titled-Tuesday-Blitz-May-07-2024"]
[Site "Chess.com"]
[Date "2024.05.07"]
[Round "11"]
[White "Mischuk_D"]
[Black "nindjaxx8"]
[Result "1/2-1/2"]
[WhiteElo "2798"]
[BlackElo "2641"]
[TimeControl "180+1"]
[EndTime "16:09:59 PDT"]
[Termination "Game drawn by repetition"]

1. d4 {[%clk 0:02:54.3]} 1... d5 {[%clk 0:02:53.3]} 2. c4 {[%clk 0:02:54.2]}
2... e6 {[%clk 0:02:52.2]} 3. g3 {[%clk 0:02:54.6]} 3... Nf6 {[%clk 0:02:52.1]}
4. Bg2 {[%clk 0:02:54.5]} 4... Be7 {[%clk 0:02:51.1]} 5. Nf3 {[%clk 0:02:54.3]}
5... O-O {[%clk 0:02:51.5]} 6. O-O {[%clk 0:02:53.7]} 6... b6 {[%clk 0:02:51.9]}
7. Ne5 {[%clk 0:02:53.4]} 7... Bb7 {[%clk 0:02:49.7]} 8. Nc3 {[%clk 0:02:52.2]}
8... Nbd7 {[%clk 0:02:49.5]} 9. Nxd7 {[%clk 0:02:50.3]} 9... Qxd7 {[%clk
0:02:49.3]} 10. Bg5 {[%clk 0:02:50.4]} 10... Rfd8 {[%clk 0:02:40.6]} 11. Bxf6
{[%clk 0:02:49.5]} 11... Bxf6 {[%clk 0:02:41.5]} 12. cxd5 {[%clk 0:02:49.8]}
12... exd5 {[%clk 0:02:41.8]} 13. e3 {[%clk 0:02:49.8]} 13... c5 {[%clk
0:02:41]} 14. dxc5 {[%clk 0:02:47]} 14... bxc5 {[%clk 0:02:41.9]} 15. Na4 {[%clk
0:02:45.7]} 15... Rac8 {[%clk 0:02:39]} 16. Rc1 {[%clk 0:02:45.5]} 16... Be7
{[%clk 0:02:32.2]} 17. b3 {[%clk 0:02:43.7]} 17... d4 {[%clk 0:02:19.5]} 18.
exd4 {[%clk 0:02:42.8]} 18... Bxg2 {[%clk 0:02:14.7]} 19. Kxg2 {[%clk
0:02:42.8]} 19... cxd4 {[%clk 0:02:15]} 20. Rxc8 {[%clk 0:02:41.8]} 20... Qxc8
{[%clk 0:02:11.7]} 21. Nb2 {[%clk 0:02:34.9]} 21... Bf6 {[%clk 0:01:48.7]} 22.
Nd3 {[%clk 0:02:33.3]} 22... h6 {[%clk 0:01:47.3]} 23. Qf3 {[%clk 0:02:31.2]}
23... Qa6 {[%clk 0:01:46.1]} 24. Qe2 {[%clk 0:02:27.7]} 24... Rc8 {[%clk
0:01:41]} 25. Rd1 {[%clk 0:02:26.2]} 25... Qb7+ {[%clk 0:01:10.9]} 26. Kg1
{[%clk 0:02:25.2]} 26... Rc3 {[%clk 0:01:07.9]} 27. h4 {[%clk 0:02:18.6]} 27...
Qc6 {[%clk 0:01:05.8]} 28. Rd2 {[%clk 0:02:18.4]} 28... g6 {[%clk 0:01:02.3]}
29. Kh2 {[%clk 0:02:07.1]} 29... Kg7 {[%clk 0:00:58.5]} 30. b4 {[%clk
0:02:00.7]} 30... Qd6 {[%clk 0:00:41.3]} 31. Nc5 {[%clk 0:01:55.9]} 31... Ra3
{[%clk 0:00:18.2]} 32. Qe4 {[%clk 0:01:40.2]} 32... a5 {[%clk 0:00:15]} 33. Nb7
{[%clk 0:01:39.9]} 33... Qxb4 {[%clk 0:00:14.7]} 34. Rd1 {[%clk 0:01:24.1]}
34... Rxa2 {[%clk 0:00:14]} 35. Kg2 {[%clk 0:01:24.8]} 35... a4 {[%clk
0:00:12.1]} 36. Qd5 {[%clk 0:01:21.7]} 36... Re2 {[%clk 0:00:08.9]} 37. Nd6
{[%clk 0:01:21]} 37... Re6 {[%clk 0:00:08.8]} 38. Ne4 {[%clk 0:01:18.8]} 38...
Qb2 {[%clk 0:00:05.2]} 39. Rd2 {[%clk 0:01:18]} 39... Qa1 {[%clk 0:00:04]} 40.
Nxf6 {[%clk 0:01:17.3]} 40... Rxf6 {[%clk 0:00:04.4]} 41. Rxd4 {[%clk
0:01:17.5]} 41... a3 {[%clk 0:00:04.4]} 42. Rd2 {[%clk 0:01:16.7]} 42... Qc3
{[%clk 0:00:03.1]} 43. Ra2 {[%clk 0:01:16.2]} 43... h5 {[%clk 0:00:03.5]} 44.
Rd2 {[%clk 0:01:03.3]} 44... Qc7 {[%clk 0:00:01.7]} 45. Kh2 {[%clk 0:01:01.8]}
45... Qc3 {[%clk 0:00:01.5]} 46. Ra2 {[%clk 0:01:01.5]} 46... Rf5 {[%clk
0:00:01.6]} 47. Qd6 {[%clk 0:00:58.6]} 47... Rf3 {[%clk 0:00:01.8]} 48. Qd5
{[%clk 0:00:55.9]} 48... Rf6 {[%clk 0:00:02.1]} 49. Qe4 {[%clk 0:00:55.6]} 49...
Qc1 {[%clk 0:00:02.5]} 50. Qe2 {[%clk 0:00:55.6]} 50... Qc3 {[%clk 0:00:02.6]}
51. Kg2 {[%clk 0:00:54.8]} 51... Rc6 {[%clk 0:00:02.5]} 52. Qe4 {[%clk
0:00:53.4]} 52... Rf6 {[%clk 0:00:02.7]} 53. Qd5 {[%clk 0:00:52.1]} 53... Qb4
{[%clk 0:00:02.2]} 54. Qd3 {[%clk 0:00:50.5]} 54... Rb6 {[%clk 0:00:02.2]} 55.
Rxa3 {[%clk 0:00:50.2]} 55... Qc5 {[%clk 0:00:02]} 56. Ra2 {[%clk 0:00:48.4]}
56... Qc6+ {[%clk 0:00:02]} 57. Kh2 {[%clk 0:00:47]} 57... Rb5 {[%clk
0:00:01.9]} 58. Rd2 {[%clk 0:00:47]} 58... Rf5 {[%clk 0:00:01.5]} 59. Qd4+
{[%clk 0:00:47.2]} 59... Qf6 {[%clk 0:00:01.4]} 60. Qe3 {[%clk 0:00:47.1]} 60...
Rf3 {[%clk 0:00:01.8]} 61. Qc5 {[%clk 0:00:47.2]} 61... Rf5 {[%clk 0:00:02.1]}
62. Qa7 {[%clk 0:00:46.9]} 62... Qe5 {[%clk 0:00:02]} 63. Qd7 {[%clk 0:00:44.2]}
63... Qf6 {[%clk 0:00:01.9]} 64. Kg1 {[%clk 0:00:43.8]} 64... Qc3 {[%clk
0:00:01.6]} 65. Qd6 {[%clk 0:00:42.4]} 65... Qa1+ {[%clk 0:00:02.1]} 66. Rd1
{[%clk 0:00:41.5]} 66... Qf6 {[%clk 0:00:02]} 67. Qd2 {[%clk 0:00:40.8]} 67...
Rf3 {[%clk 0:00:02.3]} 68. Qe2 {[%clk 0:00:40.7]} 68... Rf5 {[%clk 0:00:02.7]}
69. Kg2 {[%clk 0:00:41.2]} 69... Qe5 {[%clk 0:00:03.1]} 70. Qxe5+ {[%clk
0:00:40]} 70... Rxe5 {[%clk 0:00:04]} 71. Rd6 {[%clk 0:00:40.6]} 71... Rf5
{[%clk 0:00:04.5]} 72. f3 {[%clk 0:00:40.7]} 72... Ra5 {[%clk 0:00:04.6]} 73. g4
{[%clk 0:00:40.6]} 73... hxg4 {[%clk 0:00:05.2]} 74. fxg4 {[%clk 0:00:41.2]}
74... Ra3 {[%clk 0:00:05.8]} 75. Rd5 {[%clk 0:00:41.1]} 75... Rb3 {[%clk
0:00:06.1]} 76. Kf2 {[%clk 0:00:41.2]} 76... Ra3 {[%clk 0:00:06.2]} 77. Kg2
{[%clk 0:00:41.4]} 77... Rb3 {[%clk 0:00:06.3]} 78. g5 {[%clk 0:00:41.6]} 78...
Ra3 {[%clk 0:00:06.5]} 79. Rd4 {[%clk 0:00:42.1]} 79... Rb3 {[%clk 0:00:06.9]}
80. Rf4 {[%clk 0:00:42.4]} 80... Ra3 {[%clk 0:00:07.2]} 81. Rf3 {[%clk
0:00:42.7]} 81... Ra4 {[%clk 0:00:06.4]} 82. Kg3 {[%clk 0:00:43]} 82... Rb4
{[%clk 0:00:06.9]} 83. Rf4 {[%clk 0:00:43.4]} 83... Rb3+ {[%clk 0:00:07.4]} 84.
Kg4 {[%clk 0:00:43.9]} 84... Rb1 {[%clk 0:00:08.1]} 85. Rf3 {[%clk 0:00:44.3]}
85... Rg1+ {[%clk 0:00:08.1]} 86. Rg3 {[%clk 0:00:44.7]} 86... Rh1 {[%clk
0:00:07.3]} 87. Rg2 {[%clk 0:00:44.8]} 87... Ra1 {[%clk 0:00:07.2]} 88. Rf2
{[%clk 0:00:44.4]} 88... Ra4+ {[%clk 0:00:07.7]} 89. Rf4 {[%clk 0:00:44.7]}
89... Ra1 {[%clk 0:00:08.1]} 90. Rf3 {[%clk 0:00:44.5]} 90... Rg1+ {[%clk
0:00:08.7]} 91. Rg3 {[%clk 0:00:44.9]} 91... Ra1 {[%clk 0:00:08.1]} 92. Kh3
{[%clk 0:00:45]} 92... Ra4 {[%clk 0:00:08.1]} 93. Re3 {[%clk 0:00:44.5]} 93...
Ra1 {[%clk 0:00:08.2]} 94. Kg2 {[%clk 0:00:40.8]} 94... Ra2+ {[%clk 0:00:08.1]}
95. Kg3 {[%clk 0:00:41.3]} 95... Ra4 {[%clk 0:00:08.7]} 96. Rf3 {[%clk 0:00:40]}
96... Ra7 {[%clk 0:00:08.4]} 97. h5 {[%clk 0:00:39.1]} 97... gxh5 {[%clk
0:00:08]} 98. Kh4 {[%clk 0:00:39.6]} 98... Ra1 {[%clk 0:00:04.5]} 99. Kxh5
{[%clk 0:00:39.6]} 99... Rh1+ {[%clk 0:00:05.2]} 100. Kg4 {[%clk 0:00:40]}
100... Rg1+ {[%clk 0:00:05.9]} 101. Kf5 {[%clk 0:00:40.3]} 101... Ra1 {[%clk
0:00:05.7]} 102. Re3 {[%clk 0:00:40.3]} 102... Ra5+ {[%clk 0:00:06.3]} 103. Kg4
{[%clk 0:00:40.8]} 103... Ra4+ {[%clk 0:00:06.8]} 104. Kh5 {[%clk 0:00:41.1]}
104... Ra1 {[%clk 0:00:07.2]} 105. Rf3 {[%clk 0:00:39.5]} 105... Rh1+ {[%clk
0:00:07.5]} 106. Kg4 {[%clk 0:00:40]} 106... Rg1+ {[%clk 0:00:08.2]} 107. Kf5
{[%clk 0:00:40.5]} 107... Ra1 {[%clk 0:00:08.9]} 108. Rd3 {[%clk 0:00:39.3]}
108... Ra5+ {[%clk 0:00:09.3]} 109. Kg4 {[%clk 0:00:39.6]} 109... Ra4+ {[%clk
0:00:09.9]} 110. Kh5 {[%clk 0:00:40.1]} 110... Ra1 {[%clk 0:00:10.3]} 111. Rd7
{[%clk 0:00:40.2]} 111... Rh1+ {[%clk 0:00:10.8]} 112. Kg4 {[%clk 0:00:40.6]}
112... Rg1+ {[%clk 0:00:11.3]} 113. Kf4 {[%clk 0:00:41.2]} 113... Rf1+ {[%clk
0:00:11.6]} 114. Ke3 {[%clk 0:00:41.2]} 114... Kg6 {[%clk 0:00:11.4]} 115. Ke4
{[%clk 0:00:39.2]} 115... Kxg5 {[%clk 0:00:11.2]} 116. Ke3 {[%clk 0:00:39.6]}
116... f6 {[%clk 0:00:06.9]} 117. Rd4 {[%clk 0:00:39]} 117... Ra1 {[%clk
0:00:06.5]} 118. Kf3 {[%clk 0:00:38.8]} 118... Ra3+ {[%clk 0:00:06.3]} 119. Kf2
{[%clk 0:00:38.8]} 119... f5 {[%clk 0:00:06.1]} 120. Rc4 {[%clk 0:00:39.2]}
120... Rb3 {[%clk 0:00:05.5]} 121. Rd4 {[%clk 0:00:39.6]} 121... f4 {[%clk
0:00:04.6]} 122. Rd8 {[%clk 0:00:39.6]} 122... Rb2+ {[%clk 0:00:03.1]} 123. Kf3
{[%clk 0:00:39.7]} 123... Rb3+ {[%clk 0:00:03.7]} 124. Kf2 {[%clk 0:00:40.3]}
124... Rb6 {[%clk 0:00:03.5]} 125. Kf3 {[%clk 0:00:40.3]} 125... Rb3+ {[%clk
0:00:03.3]} 126. Kf2 {[%clk 0:00:40.7]} 1/2-1/2